bitfinex/quotes_BTCUSD_20220207
["timestamp","ask_amount","ask_price","bid_price","bid_amount"]
[1644247220394,0.05,43184.0,43179.0,0.01965944]
[1644247220590,0.05,43184.0,43180.0,0.28516119]
[1644247220792,0.01925232,43183.0,43180.0,0.28516119]
[1644247220992,0.01925232,43183.0,43182.0,0.25127314]
[1644247221594,0.116139,43195.0,43183.0,0.8]
[1644247221850,0.05,43192.0,43183.0,0.85]
[1644247222048,0.05,43192.0,43189.0,0.26598851]
[1644247222249,0.0003,43195.0,43190.0,0.31866093]
[1644247222447,0.0003,43195.0,43175.0,0.4584]
[1644247222448,0.8,43194.0,43175.0,0.4584]
[1644247222645,0.8,43194.0,43172.0,0.4872]
[1644247222646,0.8,43194.0,43172.0,0.0031]
[1644247222648,0.326163,43184.0,43172.0,0.0031]
[1644247222846,0.24529005,43183.0,43182.0,0.02137446]
[1644247223046,0.52525305,43183.0,43182.0,0.02137446]
[1644247223445,0.52525305,43183.0,43182.0,0.39411952]
[1644247223446,0.326163,43183.0,43182.0,0.39411952]
[1644247223644,0.0962,43190.0,43182.0,0.10562193]
[1644247223847,0.326163,43188.0,43187.0,0.07710531]
[1644247224245,0.376163,43188.0,43182.0,0.02137446]
[1644247224448,0.05,43185.0,43182.0,0.02137446]
[1644247224645,0.326163,43184.0,43182.0,0.02137446]
[1644247225245,0.326163,43184.0,43183.0,0.06414487]
[1644247225678,0.384101,43184.0,43183.0,0.06414487]
[1644247226279,0.326163,43184.0,43183.0,0.06414487]
[1644247226479,0.326163,43184.0,43183.0,0.05414487]
[1644247226880,0.20355788,43189.0,43183.0,0.3155047]
[1644247227085,0.05,43190.0,43183.0,0.3155047]
[1644247227086,0.326163,43188.0,43183.0,0.05414487]
[1644247227280,0.05,43190.0,43183.0,0.05414487]
[1644247227680,0.05,43190.0,43189.0,0.26401117]
[1644247228680,0.0488457,43190.0,43189.0,0.26401117]
[1644247229530,0.0488457,43190.0,43187.0,0.00024123]
[1644247229735,0.0488457,43190.0,43185.0,0.00070023]
[1644247230534,0.0488457,43190.0,43189.0,0.3543667]
[1644247230838,0.05,43215.0,43193.0,0.8]
[1644247231038,0.376163,43215.0,43214.0,0.05]
[1644247231232,0.07,43229.0,43214.0,0.08095239]
[1644247231233,0.15795483,43224.0,43214.0,0.08095239]
[1644247231435,0.15795483,43226.0,43223.0,0.03260792]
[1644247231741,0.02,43229.0,43225.0,0.10662857]
[1644247231935,0.02,43229.0,43228.0,0.03260792]
[1644247232732,0.02,43229.0,43228.0,0.057848]
[1644247232981,0.02,43229.0,43227.0,0.057853]
[1644247233181,0.02,43229.0,43228.0,0.627488]
[1644247233381,0.02,43229.0,43228.0,0.4853401]
[1644247233782,0.02,43229.0,43228.0,0.1578521]
[1644247233982,0.02,43229.0,43228.0,0.1]
[1644247234184,0.02,43229.0,43228.0,0.095]
[1644247234382,0.02,43229.0,43226.0,0.0462]
[1644247235188,0.06617094,43239.0,43228.0,1.45394389]
[1644247235189,0.0207752,43238.0,43228.0,1.45394389]
[1644247235386,0.0207752,43238.0,43236.0,0.37300881]
[1644247235586,0.0207752,43238.0,43237.0,0.322488]
[1644247235783,0.0207752,43238.0,43237.0,0.368688]
[1644247235982,0.0207752,43238.0,43237.0,0.418688]
[1644247236182,0.0207752,43238.0,43237.0,0.0462]
[1644247237036,0.02,43239.0,43237.0,0.3462]
[1644247237232,0.00273466,43246.0,43239.0,0.8]
[1644247237431,0.00273466,43246.0,43240.0,0.373423]
[1644247237831,0.02034487,43247.0,43240.0,0.1462]
[1644247238031,0.02034487,43247.0,43241.0,0.0664373]
[1644247238233,0.02034487,43247.0,43240.0,0.39003474]
[1644247238234,0.02034487,43247.0,43242.0,0.0462]
[1644247238432,0.02034487,43247.0,43243.0,0.0462]
[1644247238632,0.02034487,43247.0,43237.0,0.0207]
[1644247238633,0.05,43244.0,43237.0,0.0207]
[1644247238834,0.05,43244.0,43238.0,0.0462]
[1644247239033,0.02034487,43247.0,43238.0,0.0462]
[1644247239834,0.02034487,43247.0,43241.0,0.327223]
[1644247240034,0.02034487,43247.0,43242.0,0.0462]
[1644247240236,0.02034487,43247.0,43243.0,0.0462]
[1644247240481,0.00068206,43245.0,43243.0,0.0462]
[1644247240882,0.00068206,43245.0,43242.0,0.01871597]
[1644247241282,0.05,43247.0,43242.0,0.01871597]
[1644247241485,0.00068206,43246.0,43242.0,0.01871597]
[1644247241681,0.05068206,43246.0,43242.0,0.01871597]
[1644247242085,0.05,43243.0,43242.0,0.01871597]
[1644247242284,0.05,43243.0,43242.0,0.01836737]
[1644247242285,0.377223,43243.0,43242.0,0.01836737]
[1644247242886,0.37825911,43243.0,43242.0,0.01836737]
[1644247243083,0.20792116,43239.0,43238.0,0.01809331]
[1644247245043,0.8,43238.0,43228.0,0.3]
[1644247245245,0.05,43229.0,43222.0,0.1]
[1644247245446,0.8,43238.0,43220.0,0.05]
[1644247245447,0.05,43223.0,43220.0,0.05]
[1644247245655,0.0462,43222.0,43216.0,0.0028122]
[1644247246042,0.0462,43222.0,43221.0,0.19003795]
[1644247246241,0.0462,43222.0,43217.0,0.07959038]
[1644247246845,0.05,43227.0,43218.0,0.8]
[1644247247142,0.327223,43226.0,43225.0,0.07774078]
[1644247247343,0.05,43227.0,43213.0,0.28839766]
[1644247247542,0.05,43227.0,43216.0,0.00049601]
[1644247247743,0.327223,43226.0,43217.0,0.25199724]
[1644247248281,0.327223,43226.0,43217.0,0.48263768]
[1644247248483,0.05,43227.0,43217.0,0.48263768]
[1644247249184,0.06792126,43230.0,43225.0,0.08836861]
[1644247249384,0.327223,43229.0,43225.0,0.08836861]
[1644247249786,0.327223,43227.0,43225.0,0.08836861]
[1644247249985,0.327223,43227.0,43216.0,0.00069892]
[1644247250187,0.327223,43227.0,43220.0,0.31863958]
[1644247250188,0.05,43224.0,43220.0,0.31863958]
[1644247250388,0.11792126,43230.0,43220.0,0.31863958]
[1644247250591,0.21871447,43227.0,43220.0,0.24687382]
[1644247250787,0.05,43228.0,43220.0,0.24687382]
[1644247251190,0.06792126,43230.0,43220.0,0.24687382]
[1644247251191,0.0462,43230.0,43220.0,0.24687382]
[1644247251388,0.05,43229.0,43220.0,0.24687382]
[1644247251591,0.05,43229.0,43224.0,0.082908]
[1644247252029,0.327223,43228.0,43224.0,0.082908]
[1644247252231,0.00114514,43226.0,43224.0,0.082908]
[1644247253334,0.00114514,43226.0,43224.0,0.072908]
[1644247253732,0.00114514,43226.0,43224.0,0.122908]
[1644247254131,0.00114514,43226.0,43224.0,0.072908]
[1644247254332,0.00114514,43226.0,43220.0,0.19687382]
[1644247254630,0.05,43224.0,43220.0,0.24687382]
[1644247254830,0.00114514,43226.0,43220.0,0.24687382]
[1644247255233,0.00114514,43226.0,43224.0,0.39147434]
[1644247255483,0.00114514,43226.0,43225.0,0.627223]
[1644247255484,0.00075744,43226.0,43225.0,0.627223]
[1644247255885,0.00075744,43226.0,43225.0,0.727223]
[1644247256093,0.90327765,43262.0,43226.0,1.23]
[1644247256288,0.06,43269.0,43226.0,1.23]
[1644247256289,0.15888432,43255.0,43254.0,0.05]
[1644247256495,0.04276557,43263.0,43255.0,1.06598704]
[1644247256687,0.00027361,43268.0,43261.0,0.327223]
[1644247256884,0.00027344,43268.0,43262.0,0.0462]
[1644247257085,0.07037617,43267.0,43263.0,0.05]
[1644247257285,0.07037617,43267.0,43265.0,0.05780824]
[1644247257484,0.07037617,43267.0,43266.0,0.0426]
[1644247257485,0.00027344,43267.0,43266.0,0.0426]
[1644247257686,0.00027344,43268.0,43266.0,0.0426]
[1644247257887,0.06,43269.0,43266.0,0.0426]
[1644247258491,0.07539203,43268.0,43266.0,0.0426]
[1644247258687,0.06027344,43269.0,43266.0,0.0426]
[1644247258886,0.06,43269.0,43266.0,0.0426]
[1644247259542,0.06,43269.0,43257.0,0.38424581]
[1644247259543,0.327223,43268.0,43257.0,0.1]
[1644247259742,0.07111953,43260.0,43259.0,0.05]
[1644247259939,0.07111953,43260.0,43253.0,0.0426]
[1644247260146,0.07111953,43260.0,43254.0,0.05]
[1644247260739,0.0006665,43259.0,43254.0,0.05]
[1644247260941,0.00093994,43259.0,43253.0,0.02102074]
[1644247261342,0.33842965,43254.0,43253.0,0.02102074]
[1644247261645,0.66565265,43254.0,43253.0,0.02102074]
[1644247261841,0.96596009,43254.0,43253.0,0.02102074]
[1644247262240,0.62753044,43254.0,43253.0,0.02102074]
[1644247262443,0.58493044,43254.0,43253.0,0.02102074]
[1644247263081,0.327223,43254.0,43253.0,0.02102074]
[1644247263282,0.0006665,43256.0,43251.0,0.00069522]
[1644247263483,0.0006665,43256.0,43251.0,0.30590293]
[1644247263484,0.00027344,43255.0,43251.0,0.30590293]
[1644247263687,0.0006665,43256.0,43251.0,0.00069522]
[1644247263882,0.00027344,43255.0,43251.0,0.00069522]
[1644247264082,0.0006665,43256.0,43249.0,0.01856557]
[1644247264083,0.23669809,43256.0,43249.0,0.01856557]
[1644247264282,0.23669809,43256.0,43251.0,0.00069522]
[1644247264283,0.00027344,43255.0,43251.0,0.00069522]
[1644247264483,0.327223,43254.0,43251.0,0.00069522]
[1644247264688,0.00027335,43255.0,43251.0,0.00069522]
[1644247264887,0.0006665,43256.0,43251.0,0.00069522]
[1644247265084,0.00027335,43255.0,43251.0,0.00069522]
[1644247265284,0.00027335,43263.0,43250.0,0.02189182]
[1644247265484,0.00027335,43255.0,43252.0,0.22112642]
[1644247265684,0.0006665,43256.0,43251.0,0.00069522]
[1644247265885,0.00027335,43255.0,43253.0,0.07968884]
[1644247266192,0.0006665,43256.0,43253.0,0.12968884]
[1644247266388,0.00027335,43263.0,43258.0,0.00212437]
[1644247266585,0.00143672,43268.0,43262.0,0.05]
[1644247266586,0.00097672,43268.0,43262.0,0.05]
[1644247266841,0.00080195,43266.0,43259.0,0.05]
[1644247267035,0.00080195,43266.0,43258.0,0.00212437]
[1644247267236,0.0010753,43266.0,43258.0,0.00212437]
[1644247267433,0.327223,43265.0,43258.0,0.00212437]
[1644247267833,0.32749635,43265.0,43258.0,0.00212437]
[1644247268033,0.19969187,43264.0,43258.0,0.00212437]
[1644247268235,0.327223,43263.0,43258.0,0.00212437]
[1644247268633,0.32749635,43263.0,43258.0,0.00212437]
[1644247269436,0.32749635,43263.0,43259.0,0.05]
[1644247269635,0.42,43267.0,43259.0,0.05]
[1644247269636,0.00027335,43266.0,43259.0,0.05780927]
[1644247269934,0.42,43267.0,43259.0,0.05780927]
[1644247269935,0.327223,43265.0,43259.0,0.05780927]
[1644247270135,0.322223,43265.0,43259.0,0.05780927]
[1644247270341,0.322223,43265.0,43261.0,0.13260799]
[1644247270579,0.24121702,43262.0,43259.0,0.05]
[1644247270880,0.24121702,43262.0,43258.0,0.00212437]
[1644247271084,0.42,43267.0,43258.0,0.02222149]
[1644247271085,0.00027335,43265.0,43258.0,0.02222149]
[1644247271394,0.00027335,43263.0,43258.0,0.02222149]
[1644247271581,0.0750908,43262.0,43258.0,0.02222149]
[1644247272281,0.07536415,43262.0,43258.0,0.02222149]
[1644247272481,0.326224,43261.0,43258.0,0.02222149]
[1644247272682,0.56101438,43261.0,43258.0,0.02222149]
[1644247273286,0.56101438,43261.0,43258.0,0.00212437]
[1644247274086,0.326224,43261.0,43258.0,0.00212437]
[1644247276142,0.00092584,43262.0,43260.0,0.05]
[1644247276343,0.00119919,43262.0,43261.0,0.11910528]
[1644247276648,0.00092584,43262.0,43261.0,0.11410528]
[1644247276842,0.32714984,43262.0,43261.0,0.11410528]
[1644247277342,0.00027335,43265.0,43261.0,0.16410528]
[1644247277541,0.00027335,43266.0,43261.0,0.16410528]
[1644247277742,0.0006638,43268.0,43261.0,0.16410528]
[1644247277743,0.00093715,43268.0,43262.0,0.05]
[1644247277983,0.32649735,43266.0,43262.0,0.05]
[1644247278178,0.326224,43266.0,43262.0,0.05]
[1644247278378,0.32649735,43266.0,43262.0,0.05]
[1644247278579,0.32649735,43266.0,43265.0,0.05]
[1644247278881,0.42,43267.0,43265.0,0.377091]
[1644247279079,0.42,43267.0,43265.0,0.427091]
[1644247279382,0.42,43267.0,43265.0,0.527091]
[1644247279579,0.42,43267.0,43261.0,0.52190868]
[1644247279580,0.42,43267.0,43264.0,0.05]
[1644247279780,0.42027335,43267.0,43262.0,0.18527237]
[1644247279979,0.42,43267.0,43261.0,0.16410528]
[1644247280179,0.42027335,43267.0,43261.0,0.16410528]
[1644247280379,0.42027335,43267.0,43265.0,0.327091]
[1644247280581,0.42,43267.0,43265.0,0.327091]
[1644247280781,0.42,43267.0,43265.0,0.377091]
[1644247281583,0.24344656,43267.0,43266.0,0.22095825]
[1644247281836,0.00027301,43273.0,43269.0,0.8]
[1644247282037,0.02,43279.0,43274.0,0.327091]
[1644247282038,0.01464501,43279.0,43274.0,0.327091]
[1644247282233,0.01464501,43279.0,43278.0,0.377091]
[1644247282434,0.30591,43299.0,43278.0,0.477091]
[1644247282435,0.00027264,43288.0,43278.0,0.477091]
[1644247282634,0.00027264,43298.0,43288.0,0.06649688]
[1644247282835,0.015,43289.0,43288.0,0.39358788]
[1644247283035,0.015,43289.0,43288.0,0.11649688]
[1644247283634,0.015,43289.0,43288.0,0.05]
[1644247284035,0.015,43289.0,43284.0,0.05]
[1644247284236,0.015,43289.0,43283.0,0.1]
[1644247284434,0.015,43289.0,43283.0,0.05]
[1644247284835,0.00065557,43288.0,43282.0,0.17921586]
[1644247285036,0.01065557,43289.0,43286.0,0.8]
[1644247285235,0.00027258,43288.0,43287.0,0.33348467]
[1644247285496,0.01065557,43289.0,43287.0,0.05]
[1644247285784,0.01065557,43289.0,43286.0,0.05]
[1644247285983,0.01065557,43289.0,43285.0,0.28635812]
[1644247286185,0.01065557,43289.0,43284.0,0.20777797]
[1644247286186,0.01015557,43289.0,43284.0,0.20777797]
[1644247286385,0.01042815,43289.0,43285.0,0.37791607]
[1644247286584,0.01015557,43289.0,43285.0,0.37791607]
[1644247286787,0.00027258,43298.0,43290.0,0.05776657]
[1644247286987,0.00027258,43291.0,43290.0,0.46023126]
[1644247287193,0.00027258,43298.0,43296.0,0.19649384]
[1644247287389,0.02,43309.0,43290.0,0.38982588]
[1644247287390,0.23788809,43300.0,43290.0,0.38982588]
[1644247287588,0.00027258,43298.0,43290.0,0.05]
[1644247287788,0.15368258,43299.0,43287.0,0.05]
[1644247287987,0.00027258,43298.0,43287.0,0.05]
[1644247288186,0.23091515,43299.0,43287.0,0.33674548]
[1644247288388,0.23091515,43299.0,43289.0,0.0577682]
[1644247288389,0.13341,43297.0,43289.0,0.0577682]
[1644247288587,0.13341,43297.0,43287.0,0.06433907]
[1644247288886,0.13341,43297.0,43289.0,0.05]
[1644247289087,0.00027258,43298.0,43287.0,0.36047254]
[1644247289334,0.02027258,43299.0,43289.0,0.05]
[1644247289534,0.00027258,43298.0,43297.0,0.327091]
[1644247289738,0.02,43299.0,43297.0,0.327091]
[1644247289935,0.02,43299.0,43297.0,0.05]
[1644247290337,0.02,43299.0,43298.0,0.327091]
[1644247290539,0.02,43299.0,43298.0,0.40441541]
[1644247290735,0.02,43299.0,43298.0,0.377091]
[1644247291735,0.02,43299.0,43298.0,0.05]
[1644247291936,0.02,43299.0,43297.0,0.05]
[1644247292136,0.02,43299.0,43295.0,0.12028287]
[1644247292339,0.00074017,43296.0,43295.0,0.02028287]
[1644247292536,0.00074017,43296.0,43295.0,0.39737387]
[1644247293281,0.00074017,43296.0,43295.0,0.77103799]
[1644247293680,0.00074017,43296.0,43295.0,1.01715343]
[1644247293879,0.00074017,43296.0,43295.0,0.99687056]
[1644247294282,0.00074017,43296.0,43295.0,0.75075512]
[1644247294481,0.00074017,43296.0,43295.0,0.477091]
[1644247295281,0.00074017,43296.0,43295.0,0.75977018]
[1644247296481,0.00074017,43296.0,43295.0,0.83843977]
[1644247297133,0.00074017,43296.0,43295.0,0.327091]
[1644247297331,0.00092651,43298.0,43292.0,0.01968296]
[1644247297332,0.00174677,43298.0,43292.0,0.01968296]
[1644247297535,0.00027258,43297.0,43292.0,0.01968296]
[1644247297729,0.00147419,43298.0,43292.0,0.01968296]
[1644247297730,0.00174677,43298.0,43292.0,0.01968296]
[1644247297932,0.00027258,43297.0,43292.0,0.01968296]
[1644247298232,0.23572666,43293.0,43292.0,0.01968296]
[1644247298635,0.56195066,43293.0,43292.0,0.01968296]
[1644247299331,0.56195066,43293.0,43288.0,0.22095292]
[1644247299530,0.23572666,43293.0,43288.0,0.22095292]
[1644247300030,0.00027258,43294.0,43288.0,0.22095292]
[1644247300233,0.00027258,43297.0,43288.0,0.27095292]
[1644247300488,0.00065393,43293.0,43289.0,0.08319813]
[1644247300682,0.00065393,43293.0,43290.0,0.327091]
[1644247300882,0.00092651,43293.0,43290.0,0.377091]
[1644247301083,0.00092651,43293.0,43290.0,0.05]
[1644247301084,0.00065393,43293.0,43290.0,0.05]
[1644247301282,0.00065393,43293.0,43289.0,0.28058419]
[1644247301283,0.00065393,43293.0,43289.0,0.35128389]
[1644247301486,0.00027258,43295.0,43291.0,0.19046147]
[1644247301683,0.00065393,43294.0,43291.0,0.19046147]
[1644247301882,0.00065393,43294.0,43291.0,0.24046147]
[1644247302682,0.00090819,43293.0,43291.0,0.24046147]
[1644247303283,0.00065393,43295.0,43292.0,0.35]
[1644247303284,0.00027258,43294.0,43292.0,0.35]
[1644247303583,4.839e-05,43295.0,43292.0,0.35]
[1644247303584,0.00032097,43295.0,43292.0,0.35]
[1644247303784,0.00027258,43298.0,43292.0,0.35]
[1644247303985,0.27038951,43299.0,43291.0,0.24046147]
[1644247304234,0.00027258,43298.0,43291.0,0.24046147]
[1644247304434,0.27066209,43299.0,43291.0,0.24046147]
[1644247304635,0.00027258,43298.0,43291.0,0.24046147]
[1644247304835,0.27038951,43299.0,43291.0,0.24046147]
[1644247305036,0.00027258,43298.0,43291.0,0.24046147]
[1644247305236,0.00019618,43297.0,43291.0,0.26175145]
[1644247305937,0.20028792,43297.0,43291.0,0.26175145]
[1644247306137,0.20009174,43297.0,43291.0,0.26175145]
[1644247306537,0.19574414,43297.0,43291.0,0.26175145]
[1644247306736,0.19574414,43297.0,43291.0,0.21175145]
[1644247306937,0.19074414,43297.0,43291.0,0.21175145]
[1644247307336,0.19009174,43297.0,43291.0,0.21175145]
[1644247307538,0.19009174,43297.0,43291.0,0.19046147]
[1644247307738,0.19074414,43297.0,43290.0,0.02118532]
[1644247307998,0.326224,43296.0,43290.0,0.02118532]
[1644247308188,0.32649658,43296.0,43290.0,0.02118532]
[1644247308585,0.0768031,43293.0,43290.0,0.02118532]
[1644247308785,0.19009174,43297.0,43290.0,0.02118532]
[1644247308786,0.00027258,43295.0,43290.0,0.02118532]
[1644247308985,0.00027258,43296.0,43290.0,0.02118532]
[1644247309186,0.326224,43296.0,43290.0,0.02118532]
[1644247309387,0.32649658,43296.0,43288.0,0.00070118]
[1644247309686,0.41535442,43296.0,43295.0,0.26004017]
[1644247309891,0.326224,43296.0,43295.0,0.31004017]
[1644247310087,0.51696811,43297.0,43295.0,0.31004017]
[1644247310289,0.32687637,43297.0,43288.0,0.00070118]
[1644247310492,0.00065237,43297.0,43288.0,0.00070118]
[1644247311087,0.00027258,43298.0,43287.0,0.45999558]
[1644247311290,0.00065238,43297.0,43288.0,0.02180241]
[1644247311487,0.22024208,43296.0,43288.0,0.02180241]
[1644247311737,0.00027258,43296.0,43288.0,0.02180241]
[1644247311936,0.00065238,43297.0,43288.0,0.02180241]
[1644247312137,0.00027258,43298.0,43288.0,0.02110123]
[1644247312338,0.02,43299.0,43289.0,0.05]
[1644247312538,0.00019629,43297.0,43288.0,0.02110123]
[1644247312739,0.00019629,43297.0,43296.0,0.24855155]
[1644247312938,0.32669287,43297.0,43288.0,0.02110123]
[1644247313141,0.00019629,43297.0,43288.0,0.02110123]
[1644247313338,0.06729317,43292.0,43288.0,0.04203757]
[1644247313540,0.06729317,43292.0,43288.0,0.02093634]
[1644247313738,0.04287258,43296.0,43288.0,0.02093634]
[1644247314039,0.00027258,43295.0,43291.0,0.25724572]
[1644247314238,0.00027258,43296.0,43291.0,0.30724572]
[1644247314441,0.0001963,43297.0,43291.0,0.30724572]
[1644247314442,0.00046888,43297.0,43291.0,0.30724572]
[1644247314638,0.21412998,43298.0,43291.0,0.30724572]
[1644247314840,0.32714897,43297.0,43291.0,0.30724572]
[1644247315040,0.06428173,43296.0,43291.0,0.30724572]
[1644247315239,0.06428173,43296.0,43291.0,0.32793041]
[1644247315500,0.06455431,43296.0,43291.0,0.32793041]
[1644247315798,0.00027258,43296.0,43291.0,0.32793041]
[1644247315995,0.00027258,43297.0,43291.0,0.32793041]
[1644247316196,0.00065239,43297.0,43291.0,0.32793041]
[1644247316896,0.08356099,43297.0,43291.0,0.32793041]
[1644247317098,0.0829086,43297.0,43291.0,0.32793041]
[1644247317297,0.083561,43297.0,43291.0,0.29856499]
[1644247317500,0.083561,43297.0,43291.0,0.34856499]
[1644247317997,0.30219446,43297.0,43291.0,0.34856499]
[1644247318196,0.30219446,43297.0,43291.0,0.30724572]
[1644247318197,0.30154206,43297.0,43291.0,0.30724572]
[1644247318598,0.30219446,43297.0,43291.0,0.30724572]
[1644247318998,0.326224,43296.0,43291.0,0.30724572]
[1644247319239,0.00027258,43296.0,43291.0,0.30724572]
[1644247319539,0.00027258,43298.0,43291.0,0.30724572]
[1644247319740,0.00027258,43296.0,43291.0,0.30724572]
[1644247319940,0.0001963,43297.0,43291.0,0.30724572]
[1644247320141,0.06608861,43296.0,43291.0,0.25724572]
[1644247320345,0.06581603,43296.0,43291.0,0.25724572]
[1644247320841,0.00027258,43296.0,43291.0,0.25724572]
[1644247321048,0.00018313,43297.0,43291.0,0.25724572]
[1644247321242,0.00027258,43296.0,43291.0,0.27602284]
[1644247321440,0.00018313,43297.0,43291.0,0.27602284]
[1644247321441,0.00045571,43297.0,43291.0,0.27602284]
[1644247321641,0.326224,43296.0,43291.0,0.32602284]
[1644247321841,0.08591214,43293.0,43291.0,0.32602284]
[1644247322642,0.00027258,43296.0,43291.0,0.32602284]
[1644247322843,0.326224,43296.0,43291.0,0.32602284]
[1644247323098,0.32649658,43296.0,43291.0,0.32602284]
[1644247323298,0.326224,43296.0,43291.0,0.34497265]
[1644247323500,0.326224,43296.0,43291.0,0.32619553]
[1644247323699,0.326224,43295.0,43291.0,0.32619553]
[1644247323898,0.00027258,43295.0,43291.0,0.32619553]
[1644247324200,0.39217154,43292.0,43291.0,0.01894981]
[1644247324401,0.39217154,43292.0,43279.0,0.5]
[1644247324402,0.20854754,43292.0,43288.0,0.00068917]
[1644247324600,0.326224,43291.0,43288.0,0.00068917]
[1644247324801,0.05,43289.0,43262.0,0.5165]
[1644247325001,0.21881205,43268.0,43266.0,0.23736312]
[1644247325202,0.21881205,43268.0,43261.0,0.47210258]
[1644247325203,0.21186908,43267.0,43261.0,0.05780258]
[1644247325401,0.21186908,43267.0,43258.0,0.05]
[1644247325601,0.21186908,43267.0,43256.0,0.05]
[1644247325800,0.21186908,43267.0,43254.0,0.0011]
[1644247325801,0.0426,43266.0,43254.0,0.0011]
[1644247326102,0.0426,43266.0,43265.0,0.05]
[1644247326305,0.107818,43270.0,43266.0,0.08017495]
[1644247326306,0.05,43270.0,43266.0,0.08017495]
[1644247326502,0.0426,43273.0,43269.0,0.05]
[1644247326745,0.0426,43279.0,43272.0,0.05]
[1644247326944,0.0426,43279.0,43275.0,0.05]
[1644247327145,0.22519732,43271.0,43270.0,0.05]
[1644247327543,0.22519732,43271.0,43267.0,0.39339495]
[1644247327743,0.22519732,43271.0,43267.0,0.1]
[1644247327943,0.22519732,43271.0,43267.0,0.2]
[1644247328144,0.0426,43279.0,43267.0,0.20050683]
[1644247328344,0.0426,43279.0,43268.0,0.35]
[1644247328545,0.0426,43279.0,43267.0,0.20050683]
[1644247328546,0.0426,43279.0,43272.0,0.05]
[1644247328747,0.0426,43279.0,43276.0,0.25391947]
[1644247328748,0.326224,43278.0,43276.0,0.25391947]
[1644247329147,0.26855472,43280.0,43276.0,0.25391947]
[1644247329446,0.326224,43279.0,43276.0,0.05]
[1644247329650,0.0426,43284.0,43275.0,0.00070248]
[1644247329846,0.326224,43283.0,43275.0,0.00070248]
[1644247330249,0.0426,43284.0,43273.0,0.23379852]
[1644247330496,0.0426,43284.0,43277.0,0.00070246]
[1644247330497,0.326224,43283.0,43277.0,0.00070246]
[1644247330893,0.0637337,43282.0,43277.0,0.00070246]
[1644247331091,0.326224,43281.0,43277.0,0.00070246]
[1644247331494,0.0426,43280.0,43268.0,0.07179513]
[1644247331690,0.0426,43280.0,43277.0,0.00070246]
[1644247331891,0.53944976,43279.0,43277.0,0.00070246]
[1644247332692,0.08345494,43275.0,43269.0,0.21276143]
[1644247332892,0.21322576,43279.0,43269.0,0.26276143]
[1644247333092,0.19667529,43272.0,43268.0,0.02179513]
[1644247333293,0.23927529,43272.0,43268.0,0.02179513]
[1644247333493,0.23927529,43272.0,43271.0,0.05]
[1644247333494,0.0426,43272.0,43271.0,0.05]
[1644247333693,0.05,43275.0,43271.0,0.05]
[1644247334096,0.05,43275.0,43268.0,0.1]
[1644247334538,0.05,43275.0,43268.0,0.05]
[1644247334539,0.24132821,43275.0,43268.0,0.05]
[1644247334738,0.24132821,43275.0,43265.0,0.05779842]
[1644247334939,0.24132821,43275.0,43263.0,0.05]
[1644247335337,0.24132821,43275.0,43264.0,0.08597439]
[1644247335538,0.24132821,43275.0,43270.0,0.05]
[1644247335948,0.05,43275.0,43270.0,0.05]
[1644247336341,0.05,43275.0,43269.0,0.05]
[1644247336543,0.05,43275.0,43272.0,0.05]
[1644247337541,0.05,43275.0,43268.0,0.34676768]
[1644247337745,0.00101638,43274.0,43271.0,0.00070194]
[1644247338406,0.00101638,43274.0,43273.0,0.05]
[1644247339012,0.00101638,43274.0,43273.0,0.16942135]
[1644247339208,0.00101638,43274.0,43264.0,0.02100434]
[1644247339209,0.05,43273.0,43264.0,0.02100434]
[1644247339410,0.26971522,43274.0,43265.0,0.01801502]
[1644247339411,0.377016,43271.0,43265.0,0.01801502]
[1644247339607,0.0426,43270.0,43265.0,0.01801502]
[1644247339807,0.36891,43270.0,43265.0,0.01801502]
[1644247340008,0.27286581,43269.0,43265.0,0.01801502]
[1644247340208,0.369616,43268.0,43265.0,0.01801502]
[1644247340808,0.469616,43268.0,43265.0,0.01801502]
[1644247341008,0.369616,43268.0,43265.0,0.01801502]
[1644247341209,0.057819,43267.0,43265.0,0.01801502]
[1644247341410,0.32631,43266.0,43265.0,0.01614338]
[1644247341609,0.32631,43266.0,43264.0,0.00070144]
[1644247341873,0.41386336,43274.0,43265.0,0.05]
[1644247341874,0.01946268,43274.0,43265.0,0.05]
[1644247342074,0.327016,43273.0,43265.0,0.05]
[1644247342275,0.327016,43273.0,43256.0,0.01860895]
[1644247342276,0.327016,43273.0,43259.0,0.05]
[1644247342474,0.06576268,43274.0,43267.0,0.0007014]
[1644247342674,0.2345043,43268.0,43267.0,0.0007014]
[1644247342874,0.5608143,43268.0,43267.0,0.0007014]
[1644247343475,0.5608143,43268.0,43258.0,0.0197371]
[1644247343674,0.057823,43267.0,43265.0,0.00070143]
[1644247343873,0.39104737,43266.0,43265.0,0.00070143]
[1644247344474,0.327016,43266.0,43265.0,0.00070143]
[1644247344679,0.29822436,43274.0,43265.0,0.05]
[1644247344875,0.05,43272.0,43265.0,0.05]
[1644247345078,0.05,43272.0,43269.0,0.05]
[1644247345275,0.327016,43271.0,43269.0,0.05]
[1644247345504,0.05,43272.0,43269.0,0.05]
[1644247345897,0.327016,43271.0,43267.0,0.05]
[1644247346096,0.327016,43271.0,43268.0,0.00050496]
[1644247346998,0.05,43272.0,43266.0,0.05]
[1644247347201,0.00100675,43266.0,43264.0,0.13703721]
[1644247347402,0.00100675,43266.0,43265.0,0.327016]
[1644247347999,0.00100675,43266.0,43264.0,0.05]
[1644247348599,0.35046174,43265.0,43264.0,0.05]
[1644247348806,0.01880325,43277.0,43267.0,0.327016]
[1644247349103,0.19807844,43285.0,43277.0,1.00966162]
[1644247349346,0.19807844,43289.0,43283.0,0.05]
[1644247349548,0.19835102,43291.0,43287.0,0.19826119]
[1644247349747,0.29720798,43296.0,43289.0,0.05]
[1644247349748,0.00106326,43290.0,43289.0,0.05]
[1644247349946,0.00079068,43290.0,43289.0,0.05]
[1644247350355,0.00079068,43290.0,43289.0,0.61496874]
[1644247350546,0.00079068,43290.0,43289.0,0.66496874]
[1644247350747,0.00027258,43292.0,43290.0,0.05]
[1644247350948,0.00018632,43292.0,43291.0,0.423316]
[1644247351147,0.00018632,43292.0,43291.0,0.473316]
[1644247351348,0.00018632,43292.0,43291.0,0.631074]
[1644247351552,0.00018632,43292.0,43291.0,0.746582]